bitfinex/quotes_ETHUSD_20240530
["timestamp","ask_amount","ask_price","bid_price","bid_amount"]
[1717078892308,1.906,3791.7,3791.1,2.63771]
[1717078892495,1.906,3791.7,3791.6,0.02700686]
[1717078892693,2.63669,3792.7,3791.0,0.999791]
[1717078892858,2.63579,3794.0,3791.6,0.02708486]
[1717078892859,1.91080155,3793.0,3791.6,0.02708486]
[1717078893059,1.91080155,3793.0,3792.0,2.63711]
[1717078893293,0.45472215,3792.9,3792.0,2.63711]
[1717078893500,0.45472215,3792.9,3792.1,0.02687201]
[1717078893687,0.45472215,3792.9,3792.2,2.63695]
[1717078893877,1.91080155,3793.0,3792.2,2.63695]
[1717078894076,1.91080155,3793.0,3792.3,0.02678689]
[1717078894304,1.91080155,3793.0,3792.3,35.02678689]
[1717078895008,1.91080155,3793.0,3792.4,2.63684]
[1717078895162,1.91080155,3793.0,3792.4,2.66358433]
[1717078897416,0.19108016,3792.9,3792.4,2.66358433]
[1717078898290,0.19108016,3792.9,3792.5,35.0]
[1717078898497,1.906,3792.6,3792.5,35.0]
[1717078898809,1.906,3792.6,3792.0,2.63709]
[1717078899571,1.906,3792.6,3791.9,35.0]
[1717078899816,1.906,3792.6,3791.9,37.63717]
[1717078900199,2.37936102,3792.6,3791.9,37.63717]
[1717078900510,1.906,3792.2,3791.9,37.63717]
[1717078901469,1.906,3792.6,3791.9,37.63717]
[1717078902209,1.906,3792.6,3792.0,0.02691458]
[1717078904313,0.00480155,3793.0,3792.4,2.63683]
[1717078904615,0.00480155,3793.0,3792.5,0.02642324]
[1717078905209,0.00480155,3793.0,3792.6,2.6367]
[1717078905410,0.00480155,3793.0,3792.8,2.63657]
[1717078905600,0.00480155,3793.0,3792.9,0.02614611]
[1717078907305,0.00480155,3793.0,3792.9,35.02614611]
[1717078908382,0.00480155,3793.0,3792.9,36.02593711]
[1717078912298,0.00480155,3793.0,3792.9,36.57593711]
[1717078912627,0.00480155,3793.0,3792.9,39.02593711]
[1717078914029,0.00480155,3793.0,3792.9,39.57593711]
[1717078915787,0.00480155,3793.0,3792.9,4.57593711]
[1717078915983,0.00480155,3793.0,3792.9,4.02593711]
[1717078916482,0.00093299,3793.0,3792.9,4.02593711]
[1717078919408,0.00093299,3793.0,3792.9,39.57593711]
[1717078920145,0.0953,3794.2,3792.9,40.57593711]
[1717078920345,0.0953,3794.2,3794.1,2.63567]
[1717078920639,0.0953,3794.2,3794.1,2.66702707]
[1717078921146,0.0953,3794.2,3794.1,5.66702707]
[1717078921296,0.0953,3794.2,3794.1,2.66702707]
[1717078921502,0.0953,3794.2,3794.1,40.93372978]
[1717078921925,0.0953,3794.2,3794.1,37.93372978]
[1717078923106,0.0953,3794.2,3794.1,40.93372978]
[1717078925131,0.0953,3794.2,3794.1,5.93372978]
[1717078925535,0.0953,3794.2,3794.1,40.93372978]
[1717078930527,0.0953,3794.2,3794.1,5.93372978]
[1717078930958,0.01852337,3794.2,3794.1,5.93372978]
[1717078931880,1.906,3795.7,3794.5,2.63539]
[1717078932019,1.906,3795.7,3794.5,5.898929]
[1717078932224,1.906,3795.7,3794.5,5.93234642]
[1717078934579,1.906,3795.3,3794.5,2.66880742]
[1717078936759,1.912,3794.6,3794.5,0.03341742]
[1717078937267,1.912,3794.6,3793.1,4.0]
[1717078937665,1.912,3794.6,3793.2,0.03998463]
[1717078937851,1.912,3794.6,3793.3,0.40399846]
[1717078938053,1.912,3794.6,3793.6,2.63595]
[1717078938259,2.63539,3794.5,3793.7,0.03963019]
[1717078938567,0.006,3794.6,3793.8,2.63587]
[1717078939079,0.006,3794.6,3794.1,2.63566]
[1717078939555,0.006,3794.6,3794.2,0.03927584]
[1717078939756,0.006,3794.6,3794.3,2.63553]
[1717078940140,0.006,3794.6,3794.4,0.03913413]
[1717078940347,0.006,3794.6,3794.5,2.63539]
[1717078940582,0.006,3794.6,3794.5,2.90284241]
[1717078940899,0.006,3794.6,3794.5,2.94190569]
[1717078942083,0.006,3794.6,3794.5,5.94190569]
[1717078942234,0.006,3794.6,3794.5,40.94190569]
[1717078945250,0.006,3794.6,3794.5,5.94190569]
[1717078945650,0.006,3794.6,3794.5,40.94190569]
[1717078948815,0.006,3794.6,3794.5,0.03906328]
[1717078949093,1.912,3794.6,3794.4,2.63543]
[1717078949301,0.006,3794.6,3794.5,0.04387531]
[1717078949700,0.006,3794.6,3794.5,0.31180584]
[1717078950357,0.006,3794.6,3794.5,3.31180584]
[1717078952668,0.006,3794.6,3794.5,38.31180584]
[1717078954559,2.63419,3796.3,3794.5,38.59656913]
[1717078954774,4.54019,3796.3,3794.6,0.33745151]
[1717078955089,4.54019,3796.3,3794.7,2.63960143]
[1717078955432,1.906,3796.3,3795.4,2.63474]
[1717078955949,1.906,3796.3,3795.7,2.63453]
[1717078956275,2.63391,3796.7,3795.7,2.63453]
[1717078956476,1.906,3796.6,3795.7,2.63453]
[1717078956869,2.63391,3796.7,3795.7,2.63453]
[1717078957076,1.906,3796.6,3795.7,5.23041552]
[1717078957510,1.906,3796.6,3795.7,2.63453]
[1717078957710,1.906,3796.2,3795.7,2.63453]
[1717078958071,1.906,3796.2,3795.3,2.63481]
[1717078958519,1.906,3796.2,3795.4,35.04315814]
[1717078958684,1.906,3796.2,3795.5,2.63465]
[1717078959002,1.906,3796.2,3795.5,5.23053552]
[1717078959209,1.906,3796.2,3795.5,2.63465]
[1717078959389,1.906,3796.2,3795.6,3.0]
[1717078959601,1.906,3796.2,3794.5,0.26793053]
[1717078959602,1.906,3795.8,3795.1,2.63494]
[1717078959903,1.906,3795.8,3795.2,3.0]
[1717078961080,1.906,3795.4,3795.1,2.63494]
[1717078961506,1.906,3795.4,3794.9,35.0]
[1717078961707,1.906,3795.4,3795.0,3.0]
[1717078961881,1.906,3795.4,3795.0,0.04313109]
[1717078962209,1.906,3795.4,3794.8,3.0]
[1717078962412,1.906,3795.4,3795.0,0.04313109]
[1717078963279,0.06587156,3795.3,3794.1,2.63561]
[1717078963479,0.06587156,3795.3,3794.3,2.63552]
[1717078963480,1.906,3794.7,3794.3,2.63552]
[1717078963727,1.906,3794.7,3794.4,0.04360927]
[1717078963923,1.906,3795.2,3794.4,0.04360927]
[1717078964435,1.906,3795.2,3793.5,35.0]
[1717078964436,2.63452,3795.8,3794.5,2.63534]
[1717078964605,1.906,3795.6,3794.6,0.263534]
[1717078964921,2.6347,3795.5,3794.6,0.04344986]
[1717078965106,1.906,3795.2,3794.6,35.04344986]
[1717078965513,1.906,3795.2,3794.6,0.04344986]
[1717078965710,1.906,3795.2,3794.6,3.04344986]
[1717078966748,4.5407,3795.5,3794.6,5.63933538]
[1717078966903,4.5407,3795.5,3794.7,2.63523]
[1717078967281,2.6347,3795.5,3794.8,0.04329047]
[1717078967783,4.5407,3795.5,3794.6,3.0]
[1717078968131,0.45407,3795.4,3794.7,0.04337016]
[1717078970942,1.906,3795.2,3794.7,0.04337016]
[1717078971227,1.906,3795.6,3794.7,0.04337016]
[1717078971432,2.6347,3795.5,3794.6,5.63528]
[1717078971602,0.45407,3795.4,3794.8,0.04938796]
[1717078971800,0.45407,3795.4,3794.7,0.04947904]
[1717078972127,0.45407,3795.4,3794.6,5.63528]
[1717078972489,0.45407,3795.4,3794.7,0.04947904]
[1717078973712,0.499477,3795.3,3794.7,0.04947904]
[1717078974293,0.499477,3795.3,3794.3,7.36]
[1717078974522,0.499477,3795.3,3794.4,0.04388739]
[1717078975202,2.63492,3795.2,3794.4,0.04388739]
[1717078975405,0.3134397,3795.1,3794.4,0.04388739]
[1717078975787,2.63506,3795.0,3794.4,0.04388739]
[1717078976045,1.906,3794.8,3794.4,0.04388739]
[1717078978823,1.906,3794.8,3794.0,35.0]
[1717078979015,1.906,3794.8,3794.5,0.04380769]
[1717078979207,2.39144997,3794.8,3794.0,35.0]
[1717078979533,2.63526,3794.7,3794.1,0.04412654]
[1717078981138,1.906,3794.8,3794.1,0.04412654]
[1717078981939,1.906,3794.8,3794.2,35.04404682]
[1717078983896,2.63476,3795.5,3794.2,35.04404682]
[1717078984116,2.63476,3795.5,3794.3,2.59588552]
[1717078984545,2.63476,3795.5,3794.4,0.04388739]
[1717078984855,2.63493,3795.2,3794.4,0.04388739]
[1717078985556,4.54093,3795.2,3794.4,0.04388739]
[1717078985762,4.54093,3795.2,3794.4,1.012389]
[1717078985958,1.906,3795.2,3794.5,2.63538]
[1717078986462,4.54069,3795.5,3794.6,0.04372798]
[1717078988217,4.54069,3795.5,3794.7,35.0]
[1717078988417,4.54069,3795.5,3794.8,0.04979268]
[1717078989723,4.54069,3795.5,3794.3,7.36]
[1717078989924,4.54069,3795.5,3794.9,0.0434889]
[1717078990126,4.54069,3795.5,3794.3,42.36]
[1717078990327,4.54069,3795.5,3795.0,0.04340921]
[1717078990521,4.54069,3795.5,3794.4,2.63546]
[1717078990720,4.54069,3795.5,3795.1,0.04332953]
[1717078991076,4.54069,3795.5,3795.2,0.04324985]
[1717078991262,4.54069,3795.5,3794.6,2.63531]
[1717078991468,1.906,3795.8,3794.6,2.63531]
[1717078991620,1.906,3795.8,3794.7,0.56676784]
[1717078991820,1.906,3795.8,3794.8,2.63518]
[1717078992022,1.906,3795.8,3794.9,0.0434889]
[1717078992892,1.906,3795.4,3794.9,0.0434889]
[1717078993201,2.63487,3795.3,3794.9,0.0434889]
[1717078993438,1.906,3795.0,3794.9,0.0434889]
[1717078993587,1.906,3795.0,3794.3,7.36]
[1717078994048,1.906,3795.0,3794.4,0.04385821]
[1717078995063,4.54104,3795.0,3794.4,0.04385821]
[1717078995269,4.995144,3795.0,3794.4,0.04385821]
[1717078998890,4.995144,3795.0,3794.5,35.0]
[1717078999094,4.995144,3795.0,3794.6,0.0436988]
[1717079000670,4.54104,3795.0,3794.6,0.0436988]
[1717079002564,4.54104,3795.0,3794.0,2.63567]
[1717079002897,4.54104,3795.0,3794.1,35.04409735]
[1717079007823,2.63545,3794.5,3794.1,0.04409735]
[1717079008141,0.454145,3794.4,3793.8,7.36]
[1717079008418,2.63545,3794.5,3794.2,0.03943423]
[1717079008711,2.6347,3795.5,3793.8,42.36]
[1717079008712,2.63516,3794.9,3794.3,0.03936337]
[1717079008915,1.906,3794.6,3793.8,42.36]
[1717079009101,1.906,3794.6,3793.9,2.63553235]
[1717079010189,2.6354,3794.5,3793.9,0.03964683]
[1717079012176,2.63306302,3794.5,3793.9,0.03964683]
[1717079013821,2.63558,3794.3,3793.4,2.63614]
[1717079013974,2.63558,3794.3,3794.0,0.03576842]
[1717079014174,2.63558,3794.3,3793.5,35.0]
[1717079014401,2.63558,3794.3,3794.1,0.03570464]
[1717079014602,2.63558,3794.3,3793.5,37.59588552]
[1717079014823,2.63558,3794.3,3794.2,0.03564086]
[1717079014995,2.63558,3794.3,3793.5,37.59588552]
[1717079015196,2.63558,3794.3,3794.2,0.03564086]
[1717079015397,2.63558,3794.3,3793.6,2.636]
[1717079015609,2.63558,3794.3,3794.2,0.03564086]
[1717079015826,2.63558,3794.3,3793.6,2.636]
[1717079016130,2.63558,3794.3,3793.7,35.0]
[1717079016322,2.63558,3794.3,3793.8,0.03610275]
[1717079016480,0.793,3793.9,3793.7,35.0]
[1717079016681,0.793,3793.9,3793.8,0.03610275]
[1717079016914,0.793,3793.9,3793.7,35.0]
[1717079017194,0.793,3793.9,3793.8,0.03610275]
[1717079017602,0.793,3793.9,3793.7,35.0]
[1717079017938,3.0,3795.7,3791.5,0.55198228]
[1717079017939,2.63664,3792.7,3791.5,0.55198228]
[1717079018091,0.793,3792.5,3791.1,0.55198228]
[1717079018292,0.793,3792.5,3791.1,2.63771]
[1717079018992,0.793,3791.7,3791.1,2.63771]
[1717079019291,0.793,3791.7,3791.1,2.95667923]
[1717079020132,0.793,3791.5,3791.1,2.95667923]
[1717079020303,2.63694,3792.3,3790.6,2.63809]
[1717079020304,1.97093343,3792.2,3790.6,2.63809]
[1717079020630,1.905,3792.2,3790.6,2.63809]
[1717079020795,3.091294,3792.1,3790.7,0.263809]
[1717079020998,2.6371,3792.1,3790.7,0.263809]
[1717079022027,2.63735,3791.7,3790.7,0.263809]
[1717079022528,2.63735,3791.7,3790.7,3.263809]
[1717079022733,2.63735,3791.7,3790.8,0.5901899]
[1717079023031,2.63735,3791.7,3790.8,35.5901899]
[1717079023542,2.63762,3791.3,3790.8,35.0]
[1717079024544,1.905,3791.0,3790.8,35.0]
[1717079024840,2.63789,3790.9,3789.9,2.63854]
[1717079025129,2.63789,3790.9,3790.0,0.263854]
[1717079025130,0.06595365,3790.8,3790.0,0.263854]
[1717079025335,2.63789,3790.9,3790.0,35.0]
[1717079026172,1.905,3791.0,3790.0,35.0]
[1717079027096,4.54282,3791.0,3790.0,35.0]
[1717079027295,1.905,3790.6,3790.0,35.0]
[1717079028723,4.29789222,3791.8,3790.0,35.0]
[1717079028724,2.63768,3791.3,3790.0,35.0]
[1717079028928,2.63734,3791.7,3790.5,2.63816]
[1717079029137,1.905,3791.3,3790.1,2.63844]
[1717079029301,1.905,3791.3,3790.2,35.0]
[1717079030417,1.905,3790.8,3790.2,35.0]
[1717079032862,1.905,3790.4,3789.6,2.63877]
[1717079033245,1.905,3790.4,3789.7,0.05769201]
[1717079033443,1.905,3790.4,3789.7,35.05769201]
[1717079037341,1.905,3790.4,3789.8,2.63864]
[1717079037652,1.905,3790.4,3789.8,2.70774257]
[1717079038050,1.905,3790.4,3789.9,35.0]
[1717079041925,1.905,3790.4,3789.9,37.59588552]
[1717079042263,1.905,3790.8,3790.0,2.6385]
[1717079042845,1.905,3790.8,3790.1,35.0]
[1717079043266,1.056001,3793.5,3790.2,0.05276064]
[1717079043470,1.905,3791.4,3790.7,7.36]
[1717079043632,1.905,3791.4,3790.4,12.43]
[1717079043968,1.905,3791.4,3790.8,35.0]
[1717079044169,1.905,3791.0,3790.8,35.0]
[1717079044725,1.905,3792.4,3790.8,37.63794]
[1717079044726,1.905,3791.4,3790.8,37.63794]
[1717079045353,1.905,3791.4,3790.8,35.0]
[1717079045590,1.905,3791.8,3791.1,2.63773]
[1717079046470,2.63682,3792.5,3791.4,2.63751]
[1717079046975,1.905,3791.9,3791.4,2.63751]
[1717079049367,2.63682,3792.5,3791.4,2.63751]
[1717079049580,1.905,3791.9,3791.4,2.63751]
[1717079050077,1.905,3791.5,3791.2,7.36]
[1717079050275,1.905,3791.5,3791.0,2.63778]
[1717079050976,1.905,3791.5,3790.8,35.0]
[1717079050977,1.905,3791.5,3791.3,2.6376]
[1717079051536,1.905,3791.9,3791.6,2.63739]
[1717079055669,1.905,3791.9,3791.4,35.0]
[1717079056408,1.905,3791.5,3790.9,22.57]
[1717079056613,1.905,3791.5,3790.9,19.57]
[1717079057391,1.905,3791.1,3790.9,19.57]
[1717079058420,1.905,3791.5,3791.0,2.63777]
[1717079059181,1.905,3791.5,3790.9,19.57]
[1717079059526,1.905,3791.5,3790.9,22.20788]
[1717079059894,1.905,3791.5,3791.2,2.63766]
[1717079060104,0.64665682,3792.3,3791.2,2.63766]
[1717079060302,2.900516,3792.5,3791.2,2.63766]
[1717079060303,1.905,3791.9,3791.2,2.63766]
[1717079066624,0.06593801,3791.8,3791.0,7.36]
[1717079066935,1.905,3791.5,3791.0,7.36]
[1717079067236,1.905,3791.5,3790.6,19.57]
[1717079070009,1.905,3791.5,3790.7,2.63802]
[1717079071353,2.63711,3792.1,3791.0,2.6378]
[1717079071654,2.468711,3792.0,3791.0,2.6378]
[1717079074124,1.905,3791.6,3790.8,7.36]
[1717079074444,0.0659458,3791.5,3790.8,7.36]
[1717079074843,1.905,3791.6,3790.8,7.36]
[1717079075048,4.73291,3791.6,3790.8,7.36]
[1717079076448,2.6376,3791.4,3790.8,7.36]
[1717079076601,1.905,3791.2,3790.8,7.36]
[1717079078001,1.905,3791.2,3790.4,19.57]
[1717079078207,1.905,3791.2,3790.5,3.0]
[1717079078445,2.35926,3791.2,3790.5,3.0]
[1717079078650,1.905,3790.8,3790.1,7.36]
[1717079078951,1.905,3790.8,3789.9,2.63853]
[1717079079745,2.63807,3790.7,3789.9,2.63853]
[1717079079931,0.454307,3790.6,3789.9,2.63853]
[1717079080248,2.63807,3790.7,3789.9,2.63853]
[1717079080426,1.905,3790.9,3789.9,2.63853]
[1717079081734,1.905,3790.5,3789.7,7.36]
[1717079082048,1.905,3790.2,3789.7,7.36]
[1717079083449,1.905,3790.6,3789.7,7.36]
[1717079083950,1.905,3790.6,3789.8,2.63865]
[1717079085452,1.905,3790.6,3789.9,35.0]
[1717079085608,4.54298,3790.8,3789.9,35.0]
[1717079085813,4.806778,3790.8,3789.9,35.0]
[1717079089337,1.905,3790.4,3789.9,35.0]
[1717079090543,2.901778,3790.8,3789.9,35.0]
[1717079090727,1.905,3790.7,3789.9,35.0]
[1717079091223,2.63811,3790.6,3789.9,35.0]
[1717079094328,1.905,3790.3,3789.5,19.57]
[1717079094532,1.97096708,3790.3,3789.5,19.57]
[1717079094729,1.97096708,3790.3,3789.6,35.04958455]
[1717079094959,0.06596742,3790.2,3789.6,35.04958455]
[1717079097322,0.19709674,3790.2,3789.6,35.04958455]
[1717079098629,0.26306689,3790.2,3789.6,0.04958455]
[1717079098824,0.26306689,3790.2,3789.4,5.63888]
[1717079099030,0.26306689,3790.2,3789.5,0.04967588]
[1717079099231,0.26306689,3790.2,3789.6,35.0]
[1717079099437,0.26306689,3790.2,3789.7,0.04949322]
[1717079100065,0.26306689,3790.2,3789.4,2.63888]
[1717079100370,0.19709674,3790.2,3789.8,0.0494019]
[1717079100875,0.19709674,3790.2,3789.9,0.04335114]
[1717079101086,0.0659703,3790.1,3789.5,35.0]
[1717079101231,0.4806507,3790.0,3789.5,35.0]
[1717079102348,2.83553674,3790.2,3789.5,35.0]
[1717079102796,0.06597033,3790.1,3789.5,35.0]
[1717079103076,2.63854,3790.0,3789.1,2.63913]
[1717079103259,0.19709674,3790.2,3788.9,7.36]
[1717079103260,1.905,3789.5,3788.9,7.36]
[1717079103427,2.359366,3789.5,3788.9,7.36]
[1717079103632,1.905,3789.5,3788.9,42.36]
[1717079104333,0.795,3789.0,3788.9,7.36]
[1717079104650,0.795,3789.0,3788.8,35.0]
[1717079104853,0.795,3788.9,3788.8,35.0]
[1717079106292,4.54686,3789.6,3788.8,35.0]
[1717079106458,3.1954727,3791.7,3789.5,2.63885]
[1717079106805,3.1954727,3791.7,3789.8,7.36]
[1717079106806,1.908,3790.9,3789.8,7.36]
[1717079107106,1.908,3790.9,3789.9,35.0]
[1717079107458,2.63802,3790.8,3789.9,35.0]
[1717079109627,1.908,3790.5,3789.9,35.0]
[1717079110265,4.54602,3790.8,3789.8,9.99864]
[1717079110481,1.29789222,3791.6,3790.0,2.63848]
[1717079110482,2.63772,3791.2,3790.0,2.63848]
[1717079110711,4.54572,3791.2,3790.0,2.63848]
[1717079110927,4.54572,3791.2,3790.1,2.59588552]
[1717079111498,4.54572,3791.2,3790.2,35.0]
[1717079112072,4.54572,3791.2,3790.3,2.6383]
[1717079112277,4.54572,3791.2,3790.3,2.67402538]
[1717079112772,1.908,3790.8,3790.3,2.67402538]
[1717079113108,1.908,3790.8,3790.3,0.03572538]
[1717079113293,2.0988,3790.8,3790.3,0.03572538]
[1717079113491,1.908,3790.4,3790.3,0.03572538]
[1717079113691,1.908,3790.4,3789.8,7.36]
[1717079114063,1.908,3790.4,3789.9,0.03271003]
[1717079114604,1.908,3790.0,3789.9,0.03271003]
[1717079114976,1.908,3790.0,3789.5,2.63885]
[1717079115281,1.908,3790.0,3789.6,0.03288436]
[1717079115900,0.06597346,3789.9,3789.6,0.03288436]
[1717079116095,0.06597346,3789.9,3789.1,2.63909]
[1717079116268,0.46124435,3789.9,3789.7,0.03282625]
[1717079116609,0.46124435,3789.9,3789.1,2.63909]
[1717079116774,0.46124435,3789.9,3789.8,0.03276814]
[1717079116973,0.46124435,3789.9,3789.1,2.63909]
[1717079117306,0.46124435,3789.9,3789.2,0.03311686]
[1717079118197,1.908,3790.0,3789.2,0.03311686]
[1717079118507,2.63823,3790.5,3789.3,2.63895]
[1717079118680,1.908,3790.0,3789.3,2.63895]
[1717079118886,1.908,3790.0,3789.4,0.03300061]
[1717079119501,1.908,3790.0,3789.0,7.36]
[1717079119686,4.54653,3790.0,3789.5,0.03294248]
[1717079119899,4.54653,3790.0,3789.0,7.36]
[1717079120214,5.001183,3790.0,3789.0,7.36]
[1717079120510,0.06597679,3789.9,3789.1,0.03317499]
[1717079120871,0.06597678,3789.9,3789.1,0.03317499]
[1717079121105,1.908,3789.6,3789.1,0.03317499]
[1717079121783,2.0988,3789.6,3789.1,0.03317499]
[1717079122272,1.908,3789.6,3789.1,0.03317499]
[1717079125206,1.908,3789.6,3788.9,35.0]
[1717079125797,1.908,3789.6,3789.0,0.03074749]
[1717079126081,0.06598247,3789.5,3789.0,0.03074749]
[1717079127622,1.908,3789.6,3789.0,0.03074749]
[1717079127916,1.908,3790.3,3789.4,2.63891]
[1717079128296,1.908,3790.3,3789.5,0.03075649]
[1717079128497,1.908,3790.3,3789.5,35.03075649]
[1717079128733,2.63839,3790.2,3789.5,35.03075649]
[1717079128930,4.54659,3789.9,3789.5,35.03075649]
[1717079131361,4.54659,3789.9,3789.5,0.03075649]
[1717079131693,4.54659,3789.9,3789.1,35.0]
[1717079132025,2.63873,3789.7,3789.6,0.03056131]
[1717079132228,1.908,3789.5,3788.6,2.63943]
[1717079132524,1.97398065,3789.5,3788.6,2.63943]
[1717079132724,1.908,3789.5,3788.7,35.0]
[1717079134991,2.70494359,3789.4,3788.7,35.0]
[1717079135542,1.908,3789.1,3788.7,35.0]
[1717079136202,1.908,3789.3,3788.7,35.0]
[1717079139047,1.908,3789.3,3788.5,2.63955]
[1717079139205,1.97398506,3789.3,3788.5,2.63955]
[1717079139538,1.97398506,3789.3,3788.6,35.0]
[1717079139539,1.908,3789.3,3788.6,35.0]
[1717079142028,2.63908,3789.2,3788.6,35.0]
[1717079142202,2.63908,3789.2,3788.7,0.03108539]
[1717079142203,1.908,3788.9,3788.7,0.03108539]
[1717079142409,0.9858,3788.8,3788.1,15.06977]
[1717079142622,0.795,3788.2,3788.1,15.06977]
[1717079142827,0.795,3788.2,3788.1,37.63977]
[1717079144462,4.54729,3788.9,3788.1,37.63977]
[1717079144826,4.54729,3788.9,3788.1,2.63977]
[1717079145366,5.002019,3788.9,3788.1,2.63977]
[1717079147732,5.002019,3788.9,3787.8,2.64004]
[1717079148067,1.908,3788.7,3787.8,2.64004]
[1717079148268,1.9739953,3788.7,3787.8,2.64004]
[1717079148468,1.9739953,3788.7,3787.9,35.0]
[1717079148633,1.908,3788.7,3787.9,35.0]
[1717079150456,1.908,3788.7,3788.0,2.63988]
[1717079151030,1.908,3788.7,3788.1,35.0]
[1717079151546,4.54749,3788.7,3787.6,2.64016]
[1717079151742,4.54749,3788.7,3787.6,5.23604552]
[1717079152326,4.54749,3788.7,3787.9,2.63997]
[1717079152579,2.63901,3789.3,3787.6,2.59588552]
[1717079152783,2.63879,3789.7,3788.6,2.63949]
[1717079152993,2.63879,3789.7,3788.9,2.63926]
[1717079153145,2.6385,3790.1,3788.9,2.63926]
[1717079153331,2.6385,3790.1,3789.1,2.6391]
[1717079153332,4.5465,3790.1,3789.1,2.6391]
[1717079153728,4.5465,3790.1,3789.2,35.0]
[1717079154349,1.908,3789.7,3789.2,35.0]
[1717079155073,1.908,3789.7,3789.1,2.6391]
[1717079155479,1.908,3789.7,3789.1,37.6391]
[1717079156780,1.908,3789.7,3789.1,35.0]
[1717079157359,1.908,3789.7,3789.2,0.03103601]
[1717079158637,0.06598023,3789.6,3788.7,2.6394]
[1717079158867,1.908,3789.4,3788.8,0.03092359]
[1717079159053,0.06598138,3789.3,3788.8,0.03092359]
[1717079159377,1.908,3789.0,3788.3,2.63967]
[1717079159550,1.908,3789.0,3788.9,0.03087029]
[1717079159728,1.908,3789.0,3788.3,2.63967]
[1717079160172,1.908,3789.0,3788.4,0.0311368]
[1717079160961,0.06599267,3788.9,3788.4,0.0311368]
[1717079161363,0.06599267,3788.9,3788.4,35.0311368]
[1717079161568,1.908,3788.6,3788.4,0.0311368]
[1717079161877,1.908,3788.6,3788.0,7.36]
[1717079162081,0.06599719,3788.5,3788.1,35.0]
[1717079162371,1.908,3788.6,3788.1,35.0]
[1717079162574,2.36273,3788.6,3788.1,35.0]
[1717079163484,5.00225,3788.6,3788.0,7.36]
[1717079163775,1.908,3788.2,3787.4,22.21029]
[1717079163934,0.0660065,3788.1,3787.3,7.36]
[1717079164133,1.908,3787.8,3787.3,7.36]
[1717079165737,3.203714,3788.3,3786.4,10.00099]
[1717079165738,1.908,3787.4,3786.4,10.00099]
[1717079165940,1.908,3787.4,3786.7,2.64076]
[1717079166997,1.908,3787.4,3786.8,35.0]
[1717079167484,1.908,3786.9,3786.4,7.36]
[1717079167778,1.908,3786.5,3786.4,42.36]
[1717079167982,1.908,3786.9,3786.4,35.0]
[1717079169957,2.64053,3787.2,3786.4,35.0]
[1717079170270,1.908,3787.1,3786.4,35.0]
[1717079172384,1.908,3787.1,3786.5,0.02674239]
[1717079174799,26.55872296,3790.0,3786.8,2.6407]
[1717079175003,1.908,3788.0,3787.2,7.36]
[1717079175354,1.908,3788.0,3787.3,0.02637866]
[1717079175559,1.908,3788.0,3787.4,2.64031]
[1717079175803,4.54766,3788.4,3787.4,2.64031]
[1717079175967,4.54766,3788.4,3787.5,36.0289622]
[1717079176174,1.908,3788.4,3787.6,2.64018]
[1717079176558,1.908,3788.4,3787.7,0.0260654]
[1717079177095,1.908,3788.4,3787.8,35.0]
[1717079177459,1.908,3788.4,3787.9,0.02598008]
[1717079178481,2.6402,3787.6,3786.6,7.36]
[1717079178872,2.64043,3787.3,3786.7,0.03330343]
[1717079179073,1.908,3786.8,3786.7,0.05058207]
[1717079179481,1.908,3786.8,3786.1,2.64118]
[1717079179684,0.319043,3787.2,3786.2,0.03969737]
[1717079179685,1.908,3786.4,3786.2,0.03969737]
[1717079181938,1.908,3786.4,3785.9,7.36]
[1717079182097,1.908,3786.4,3786.3,0.03962621]
[1717079182445,1.908,3786.4,3785.7,2.64149]
[1717079182655,1.908,3786.4,3786.3,0.03611431]
[1717079182844,1.908,3786.4,3785.7,2.64149]
[1717079183333,1.908,3786.4,3785.8,0.03648465]
[1717079183968,2.64066,3787.0,3785.9,2.64137]
[1717079184128,1.908,3786.5,3785.9,2.64137]
[1717079184438,1.908,3786.5,3786.0,0.03635654]
[1717079184643,1.908,3786.1,3786.0,0.03635654]
[1717079185004,1.908,3786.1,3785.4,10.00167]
[1717079185005,1.97403615,3786.1,3785.4,7.36]
[1717079185214,1.97403615,3786.1,3786.0,0.03306659]
[1717079185215,1.908,3786.1,3786.0,0.03306659]
[1717079185422,2.362903,3786.1,3785.4,7.36]
[1717079185739,1.908,3786.1,3785.4,7.36]
[1717079185912,1.908,3786.1,3785.5,0.03335776]
[1717079187035,1.908,3786.1,3785.6,35.0]
[1717079187395,1.908,3786.1,3785.7,0.03656541]
[1717079187812,1.908,3786.1,3785.6,35.0]
[1717079188019,1.908,3786.1,3785.8,0.03650135]
[1717079188243,1.908,3786.1,3785.7,0.03656541]
[1717079188446,1.908,3786.1,3785.9,0.0364373]
[1717079188645,1.908,3786.1,3785.8,0.03650135]
[1717079188801,1.908,3786.1,3786.0,0.03637324]
[1717079189346,1.908,3786.1,3785.6,35.0]
[1717079189556,1.908,3786.1,3786.0,0.03637324]
[1717079189702,1.908,3786.1,3785.6,35.0]
[1717079190054,1.908,3786.1,3785.7,0.03656541]
[1717079190402,1.908,3786.1,3785.6,35.0]
[1717079190705,1.908,3786.1,3785.7,0.03096088]